[Event "*** Titled Tuesday Blitz"]
[Site "Chess.com"]
[Date "2020.05.26"]
[Round "1"]
[White "Oleksandr_Bortnyk"]
[Black "2nd_life"]
[Result "1-0"]
[WhiteElo "2982"]
[BlackElo "2449"]
[TimeControl "180+1"]
[EndTime "10:08:09 PDT"]
[Termination "Oleksandr_Bortnyk won on time"]

1. e4 {[%clk 0:03:00.9]} 1... e5 {[%clk 0:02:59.2]} 2. Bc4 {[%clk 0:03:00.5]}
2... Nf6 {[%clk 0:02:58.5]} 3. d3 {[%clk 0:03:00.9]} 3... c6 {[%clk 0:02:58.2]}
4. Nf3 {[%clk 0:03:00.8]} 4... d5 {[%clk 0:02:56.4]} 5. Bb3 {[%clk 0:03:01.3]}
5... Qc7 {[%clk 0:02:51.6]} 6. h3 {[%clk 0:02:52.6]} 6... Bd6 {[%clk 0:02:29]}
7. Nc3 {[%clk 0:02:47.9]} 7... dxe4 {[%clk 0:02:13.6]} 8. Ng5 {[%clk 0:02:43.2]}
8... O-O {[%clk 0:02:13.1]} 9. Ncxe4 {[%clk 0:02:36.6]} 9... Nxe4 {[%clk
0:02:11.4]} 10. Nxe4 {[%clk 0:02:17.3]} 10... Bf5 {[%clk 0:02:10.2]} 11. Qf3
{[%clk 0:01:58.5]} 11... Bxe4 {[%clk 0:02:06.4]} 12. dxe4 {[%clk 0:01:56.3]}
12... Na6 {[%clk 0:01:58.1]} 13. c3 {[%clk 0:01:56.5]} 13... Nc5 {[%clk
0:01:57]} 14. Bc2 {[%clk 0:01:56.7]} 14... a5 {[%clk 0:01:56.3]} 15. O-O {[%clk
0:01:47.9]} 15... a4 {[%clk 0:01:53.9]} 16. Qg4 {[%clk 0:01:39.8]} 16... Ne6
{[%clk 0:01:41.7]} 17. Rb1 {[%clk 0:01:34.8]} 17... Rfd8 {[%clk 0:01:12.6]} 18.
g3 {[%clk 0:01:19.9]} 18... Bf8 {[%clk 0:00:48.7]} 19. h4 {[%clk 0:01:18.7]}
19... g6 {[%clk 0:00:39.6]} 20. h5 {[%clk 0:01:14.1]} 20... b5 {[%clk
0:00:39.3]} 21. b4 {[%clk 0:01:03.7]} 21... c5 {[%clk 0:00:28.8]} 22. bxc5
{[%clk 0:00:54]} 22... Qxc5 {[%clk 0:00:28.6]} 23. Qf3 {[%clk 0:00:44.6]} 23...
Rac8 {[%clk 0:00:27.1]} 24. Bb2 {[%clk 0:00:35]} 24... Rd2 {[%clk 0:00:24.4]}
25. Bd3 {[%clk 0:00:24.9]} 25... Ng5 {[%clk 0:00:22.5]} 26. Qg4 {[%clk 0:00:25]}
26... Rxd3 {[%clk 0:00:17.6]} 27. Qxg5 {[%clk 0:00:23.7]} 27... Be7 {[%clk
0:00:17.9]} 28. Qg4 {[%clk 0:00:22.4]} 28... Rcd8 {[%clk 0:00:15.6]} 29. Bc1
{[%clk 0:00:21.1]} 29... Rxc3 {[%clk 0:00:13.4]} 30. hxg6 {[%clk 0:00:19.3]}
30... hxg6 {[%clk 0:00:13.2]} 31. Be3 {[%clk 0:00:20.2]} 31... Qc4 {[%clk
0:00:10.4]} 32. Kg2 {[%clk 0:00:20.3]} 32... b4 {[%clk 0:00:10.1]} 33. Rh1
{[%clk 0:00:19.7]} 33... Rxe3 {[%clk 0:00:07.1]} 34. fxe3 {[%clk 0:00:17.5]}
34... Rd2+ {[%clk 0:00:07.1]} 35. Kh3 {[%clk 0:00:17.3]} 35... Qe2 {[%clk
0:00:03.5]} 36. Qxe2 {[%clk 0:00:08.7]} 36... Rxe2 {[%clk 0:00:04.4]} 37. Rh2
{[%clk 0:00:09.6]} 37... Rxe3 {[%clk 0:00:04.5]} 38. Rc1 {[%clk 0:00:09.1]}
38... Rxe4 {[%clk 0:00:04.5]} 39. Rc7 {[%clk 0:00:09.1]} 39... Bf6 {[%clk
0:00:03.3]} 40. Ra7 {[%clk 0:00:09.3]} 40... Kg7 {[%clk 0:00:03.1]} 41. Rxa4
{[%clk 0:00:09]} 41... Rd4 {[%clk 0:00:03.2]} 42. Rb2 {[%clk 0:00:07]} 42... Be7
{[%clk 0:00:03.4]} 43. Re2 {[%clk 0:00:07.1]} 43... Bd6 {[%clk 0:00:03.3]} 44.
Ra7 {[%clk 0:00:06.2]} 44... e4 {[%clk 0:00:02.7]} 45. Kg2 {[%clk 0:00:05.8]}
45... Rd3 {[%clk 0:00:03]} 46. Rxe4 {[%clk 0:00:05.9]} 46... Rxg3+ {[%clk
0:00:03.1]} 47. Kf1 {[%clk 0:00:06.5]} 47... Ra3 {[%clk 0:00:03.3]} 48. Rd7
{[%clk 0:00:05.4]} 48... Bc5 {[%clk 0:00:02.7]} 49. Rf4 {[%clk 0:00:05.2]} 49...
Kh6 {[%clk 0:00:02.3]} 50. Rfxf7 {[%clk 0:00:04.1]} 50... Rxa2 {[%clk
0:00:02.6]} 51. Rh7+ {[%clk 0:00:03.1]} 51... Kg5 {[%clk 0:00:03]} 52. Rd5+
{[%clk 0:00:04]} 52... Kg4 {[%clk 0:00:02.9]} 53. Rxc5 {[%clk 0:00:04.9]} 53...
b3 {[%clk 0:00:03.1]} 54. Rb7 {[%clk 0:00:04.2]} 54... b2 {[%clk 0:00:01.3]} 55.
Rcb5 {[%clk 0:00:04.6]} 1-0

[Event "*** Titled Tuesday Blitz"]
[Site "Chess.com"]
[Date "2020.05.26"]
[Round "1"]
[White "okriak"]
[Black "MathiasWomacka"]
[Result "0-1"]
[WhiteElo "2717"]
[BlackElo "2387"]
[TimeControl "180+1"]
[EndTime "10:08:09 PDT"]
[Termination "MathiasWomacka won by resignation"]

1. Nf3 {[%clk 0:03:00.9]} 1... c5 {[%clk 0:02:56.9]} 2. c4 {[%clk 0:03:00.4]}
2... Nf6 {[%clk 0:02:56.1]} 3. Nc3 {[%clk 0:02:59.8]} 3... e6 {[%clk 0:02:56.1]}
4. g3 {[%clk 0:02:58.4]} 4... b6 {[%clk 0:02:56.3]} 5. Bg2 {[%clk 0:02:58]} 5...
Bb7 {[%clk 0:02:56.9]} 6. O-O {[%clk 0:02:58.5]} 6... Be7 {[%clk 0:02:56.4]} 7.
Re1 {[%clk 0:02:56.9]} 7... d5 {[%clk 0:02:55.5]} 8. cxd5 {[%clk 0:02:56]} 8...
Nxd5 {[%clk 0:02:56.4]} 9. d4 {[%clk 0:02:55.2]} 9... Nxc3 {[%clk 0:02:55.8]}
10. bxc3 {[%clk 0:02:54.9]} 10... Be4 {[%clk 0:02:55.8]} 11. Ne5 {[%clk
0:02:39.8]} 11... Bxg2 {[%clk 0:02:54.9]} 12. Kxg2 {[%clk 0:02:40.4]} 12... Qd5+
{[%clk 0:02:51.7]} 13. e4 {[%clk 0:02:39.4]} 13... Qb7 {[%clk 0:02:49.3]} 14.
Qa4+ {[%clk 0:02:31.1]} 14... Nd7 {[%clk 0:02:42.3]} 15. Rb1 {[%clk 0:02:26.4]}
15... Bd6 {[%clk 0:02:25.4]} 16. Nc4 {[%clk 0:02:19.8]} 16... Be7 {[%clk
0:02:25.1]} 17. Ne5 {[%clk 0:01:58.4]} 17... Bd6 {[%clk 0:02:24.2]} 18. Bf4
{[%clk 0:01:51.9]} 18... Bxe5 {[%clk 0:02:23.7]} 19. Bxe5 {[%clk 0:01:51.8]}
19... O-O {[%clk 0:02:23.5]} 20. Bd6 {[%clk 0:01:52]} 20... Rfc8 {[%clk
0:02:20.6]} 21. Kg1 {[%clk 0:01:48.6]} 21... Qc6 {[%clk 0:02:13.1]} 22. Qxc6
{[%clk 0:01:47.7]} 22... Rxc6 {[%clk 0:02:14]} 23. Bf4 {[%clk 0:01:47.2]} 23...
cxd4 {[%clk 0:02:12.9]} 24. cxd4 {[%clk 0:01:47.2]} 24... Nf6 {[%clk 0:02:07.7]}
25. Rb2 {[%clk 0:01:40.6]} 25... Rac8 {[%clk 0:02:06.5]} 26. Ree2 {[%clk
0:01:37.7]} 26... h6 {[%clk 0:01:48.5]} 27. Kg2 {[%clk 0:01:34]} 27... Rc4
{[%clk 0:01:40.6]} 28. Rbd2 {[%clk 0:01:29.1]} 28... Rd8 {[%clk 0:01:27.4]} 29.
Be5 {[%clk 0:01:28.7]} 29... Nd7 {[%clk 0:01:26.8]} 30. Bd6 {[%clk 0:01:20.4]}
30... Nf6 {[%clk 0:01:20.1]} 31. Be5 {[%clk 0:01:19.3]} 31... Ng4 {[%clk
0:01:08.9]} 32. f3 {[%clk 0:01:16.5]} 32... Nxe5 {[%clk 0:01:08.2]} 33. dxe5
{[%clk 0:01:17.1]} 33... Rxd2 {[%clk 0:01:05.8]} 34. Rxd2 {[%clk 0:01:17.2]}
34... Ra4 {[%clk 0:01:05.8]} 35. g4 {[%clk 0:01:14.7]} 35... g5 {[%clk
0:01:05.6]} 36. Kg3 {[%clk 0:01:14.6]} 36... Ra3 {[%clk 0:01:01.8]} 37. Rf2
{[%clk 0:01:08.9]} 37... Ra5 {[%clk 0:00:53.5]} 38. h4 {[%clk 0:01:05.2]} 38...
Rxe5 {[%clk 0:00:52.4]} 39. hxg5 {[%clk 0:01:05.4]} 39... hxg5 {[%clk
0:00:52.1]} 40. Rc2 {[%clk 0:01:05.5]} 40... Ra5 {[%clk 0:00:51.9]} 41. Kf2
{[%clk 0:01:05.3]} 41... Ra3 {[%clk 0:00:49.8]} 42. Kg3 {[%clk 0:01:04.4]} 42...
Kg7 {[%clk 0:00:49.9]} 43. Rd2 {[%clk 0:01:04.3]} 43... Kf6 {[%clk 0:00:48.8]}
44. Kg2 {[%clk 0:01:02.9]} 44... b5 {[%clk 0:00:47.3]} 45. Kg3 {[%clk
0:01:02.4]} 45... b4 {[%clk 0:00:46.6]} 46. Rd4 {[%clk 0:01:02.1]} 46... a5
{[%clk 0:00:46.2]} 47. Rd2 {[%clk 0:01:02.2]} 47... Rc3 {[%clk 0:00:42.6]} 48.
Rh2 {[%clk 0:00:58.6]} 48... a4 {[%clk 0:00:37.5]} 49. Rb2 {[%clk 0:00:57.9]}
49... b3 {[%clk 0:00:36.9]} 50. axb3 {[%clk 0:00:57.7]} 50... axb3 {[%clk
0:00:36.6]} 51. Rd2 {[%clk 0:00:56.4]} 51... Ke5 {[%clk 0:00:34.5]} 52. Rd7
{[%clk 0:00:55.4]} 52... b2 {[%clk 0:00:27.6]} 53. Rb7 {[%clk 0:00:54.5]} 53...
Rc2 {[%clk 0:00:27.3]} 54. Rb4 {[%clk 0:00:51.9]} 54... Kd6 {[%clk 0:00:26.2]}
55. Rb8 {[%clk 0:00:50.3]} 55... Kc5 {[%clk 0:00:24.1]} 56. Rc8+ {[%clk
0:00:50.2]} 56... Kd4 {[%clk 0:00:24.1]} 57. Rxc2 {[%clk 0:00:50]} 57... b1=Q
{[%clk 0:00:24]} 58. Re2 {[%clk 0:00:45.8]} 58... Qf1 {[%clk 0:00:20.8]} 59. Ra2
{[%clk 0:00:42.4]} 59... Qe1+ {[%clk 0:00:17.5]} 60. Kg2 {[%clk 0:00:41.1]}
60... Ke3 {[%clk 0:00:17.5]} 61. Ra3+ {[%clk 0:00:40.8]} 61... Kf4 {[%clk
0:00:17.6]} 62. Rb3 {[%clk 0:00:37]} 62... Qe2+ {[%clk 0:00:17.4]} 63. Kh3
{[%clk 0:00:34.4]} 63... Qf2 {[%clk 0:00:16.3]} 0-1

[Event "*** Titled Tuesday Blitz"]
[Site "Chess.com"]
[Date "2020.05.26"]
[Round "1"]
[White "GeorgMeier"]
[Black "pooh2012"]
[Result "1-0"]
[WhiteElo "2983"]
[BlackElo "2451"]
[TimeControl "180+1"]
[EndTime "10:08:10 PDT"]
[Termination "GeorgMeier won by resignation"]

1. Nf3 {[%clk 0:02:54]} 1... Nf6 {[%clk 0:02:55.1]} 2. g3 {[%clk 0:02:50.6]}
2... b5 {[%clk 0:02:54.9]} 3. Bg2 {[%clk 0:02:49.6]} 3... Bb7 {[%clk 0:02:54.5]}
4. O-O {[%clk 0:02:48.9]} 4... e6 {[%clk 0:02:51.3]} 5. d3 {[%clk 0:02:48.2]}
5... d5 {[%clk 0:02:49.9]} 6. c4 {[%clk 0:02:47.6]} 6... a6 {[%clk 0:02:42.8]}
7. Bf4 {[%clk 0:02:26.3]} 7... Bd6 {[%clk 0:02:34.3]} 8. Bxd6 {[%clk 0:02:22]}
8... cxd6 {[%clk 0:02:32.1]} 9. cxb5 {[%clk 0:02:17.8]} 9... axb5 {[%clk
0:02:29.9]} 10. Qb3 {[%clk 0:02:14.3]} 10... Qb6 {[%clk 0:02:24.3]} 11. Nc3
{[%clk 0:02:08.5]} 11... Bc6 {[%clk 0:02:09.2]} 12. e3 {[%clk 0:01:51.8]} 12...
Nbd7 {[%clk 0:01:35.1]} 13. a3 {[%clk 0:01:21.5]} 13... O-O {[%clk 0:01:19.3]}
14. Nd4 {[%clk 0:01:04.4]} 14... Nc5 {[%clk 0:01:12.3]} 15. Qc2 {[%clk
0:01:00.3]} 15... Bd7 {[%clk 0:01:06.5]} 16. b4 {[%clk 0:00:59.1]} 16... Na4
{[%clk 0:00:46.2]} 17. Rfc1 {[%clk 0:00:43.7]} 17... Rfc8 {[%clk 0:00:40.8]} 18.
Nxa4 {[%clk 0:00:43.1]} 18... bxa4 {[%clk 0:00:39.8]} 19. Qb2 {[%clk 0:00:40.8]}
19... e5 {[%clk 0:00:36]} 20. Ne2 {[%clk 0:00:36.4]} 20... Qb5 {[%clk
0:00:17.2]} 21. Qd2 {[%clk 0:00:16]} 21... Bf5 {[%clk 0:00:15.5]} 22. Nc3 {[%clk
0:00:14]} 22... Qxd3 {[%clk 0:00:12.7]} 23. Qxd3 {[%clk 0:00:14.1]} 23... Bxd3
{[%clk 0:00:13.6]} 24. Nxd5 {[%clk 0:00:14.8]} 24... Nxd5 {[%clk 0:00:05.7]} 25.
Bxd5 {[%clk 0:00:15.7]} 25... Rab8 {[%clk 0:00:06.3]} 26. f3 {[%clk 0:00:15]}
26... Kf8 {[%clk 0:00:05.9]} 27. Kf2 {[%clk 0:00:15.2]} 27... Ke7 {[%clk
0:00:06.1]} 28. Ke1 {[%clk 0:00:15.3]} 28... Bb5 {[%clk 0:00:06.2]} 29. Kd2
{[%clk 0:00:15.2]} 29... Bd7 {[%clk 0:00:06.3]} 30. h4 {[%clk 0:00:14.2]} 30...
Be6 {[%clk 0:00:06.4]} 31. Bc6 {[%clk 0:00:07.6]} 31... d5 {[%clk 0:00:05.1]}
32. Bxa4 {[%clk 0:00:06]} 32... Kd6 {[%clk 0:00:03.3]} 33. Bb3 {[%clk
0:00:05.2]} 33... h6 {[%clk 0:00:02.2]} 34. Rxc8 {[%clk 0:00:04.8]} 34... Rxc8
{[%clk 0:00:02]} 35. Rc1 {[%clk 0:00:05]} 35... Ra8 {[%clk 0:00:02.3]} 36. a4
{[%clk 0:00:05.1]} 36... Rb8 {[%clk 0:00:03]} 37. b5 {[%clk 0:00:05.5]} 37... f5
{[%clk 0:00:03]} 38. Rc6+ {[%clk 0:00:05.1]} 38... Kd7 {[%clk 0:00:02.8]} 39. f4
{[%clk 0:00:05.5]} 39... exf4 {[%clk 0:00:02.4]} 40. gxf4 {[%clk 0:00:06]} 40...
g5 {[%clk 0:00:03.2]} 41. fxg5 {[%clk 0:00:06.2]} 41... hxg5 {[%clk 0:00:04.1]}
42. hxg5 {[%clk 0:00:07.1]} 42... Rg8 {[%clk 0:00:04.4]} 43. Ra6 {[%clk
0:00:04.5]} 43... Rxg5 {[%clk 0:00:04.2]} 44. Kd3 {[%clk 0:00:05.1]} 44... Rg3
{[%clk 0:00:03.3]} 45. Kd4 {[%clk 0:00:05.3]} 45... Rg4+ {[%clk 0:00:03.4]} 46.
Kc5 {[%clk 0:00:05.7]} 46... Re4 {[%clk 0:00:03.7]} 47. Ra7+ {[%clk 0:00:05.5]}
47... Ke8 {[%clk 0:00:03.5]} 48. Bxd5 {[%clk 0:00:06]} 48... Bxd5 {[%clk
0:00:03.1]} 49. Kxd5 {[%clk 0:00:06.1]} 49... Rxe3 {[%clk 0:00:03.4]} 50. b6
{[%clk 0:00:06.6]} 50... Kd8 {[%clk 0:00:03.4]} 51. a5 {[%clk 0:00:06.7]} 51...
Kc8 {[%clk 0:00:03.4]} 52. Rf7 {[%clk 0:00:06.4]} 52... Ra3 {[%clk 0:00:02.7]}
53. Kc6 {[%clk 0:00:06.2]} 53... Rc3+ {[%clk 0:00:02.4]} 54. Kb5 {[%clk
0:00:06.3]} 54... Re3 {[%clk 0:00:01.8]} 55. a6 {[%clk 0:00:05.6]} 55... Re5+
{[%clk 0:00:01.5]} 56. Kc4 {[%clk 0:00:06]} 56... Re6 {[%clk 0:00:01.9]} 57.
Rf8+ {[%clk 0:00:05.5]} 57... Kd7 {[%clk 0:00:02]} 58. a7 {[%clk 0:00:06]} 58...
Kc6 {[%clk 0:00:02.5]} 59. a8=Q+ {[%clk 0:00:06.2]} 1-0

[Event "*** Titled Tuesday Blitz"]
[Site "Chess.com"]
[Date "2020.05.26"]
[Round "1"]
[White "InitiatingASC"]
[Black "Harsha_Bharathakoti"]
[Result "0-1"]
[WhiteElo "2381"]
[BlackElo "2751"]
[TimeControl "180+1"]
[EndTime "10:08:10 PDT"]
[Termination "Harsha_Bharathakoti won by resignation"]

1. Nf3 {[%clk 0:02:59.6]} 1... d5 {[%clk 0:02:58.6]} 2. b3 {[%clk 0:02:59.5]}
2... Nf6 {[%clk 0:02:56.5]} 3. Bb2 {[%clk 0:02:59.9]} 3... g6 {[%clk 0:02:56.3]}
4. e3 {[%clk 0:02:58.8]} 4... Bg7 {[%clk 0:02:56]} 5. c4 {[%clk 0:02:57.9]} 5...
c6 {[%clk 0:02:54.8]} 6. cxd5 {[%clk 0:02:57.4]} 6... cxd5 {[%clk 0:02:55.7]} 7.
Be2 {[%clk 0:02:56.2]} 7... O-O {[%clk 0:02:56.3]} 8. O-O {[%clk 0:02:56.3]}
8... Nc6 {[%clk 0:02:57]} 9. d3 {[%clk 0:02:54.9]} 9... Re8 {[%clk 0:02:51.6]}
10. Nbd2 {[%clk 0:02:54]} 10... e5 {[%clk 0:02:51.6]} 11. a3 {[%clk 0:02:51.2]}
11... a5 {[%clk 0:02:51.7]} 12. Qc2 {[%clk 0:02:50.7]} 12... Bd7 {[%clk
0:02:36.8]} 13. Rac1 {[%clk 0:02:49.7]} 13... d4 {[%clk 0:02:31.8]} 14. e4
{[%clk 0:02:41.1]} 14... Rc8 {[%clk 0:02:31.7]} 15. Qb1 {[%clk 0:02:40.6]} 15...
Bh6 {[%clk 0:01:54.7]} 16. Rc2 {[%clk 0:02:35.6]} 16... Be6 {[%clk 0:01:53.6]}
17. Bc1 {[%clk 0:02:12.1]} 17... b5 {[%clk 0:01:34.9]} 18. Rd1 {[%clk
0:02:07.2]} 18... Nd7 {[%clk 0:01:34.5]} 19. Nf1 {[%clk 0:02:00.5]} 19... Bxc1
{[%clk 0:00:51.1]} 20. Rdxc1 {[%clk 0:01:58.5]} 20... Na7 {[%clk 0:00:51.7]} 21.
N3d2 {[%clk 0:01:52.4]} 21... Qe7 {[%clk 0:00:48.5]} 22. Qb2 {[%clk 0:01:48.7]}
22... Qd6 {[%clk 0:00:43]} 23. Nb1 {[%clk 0:01:17.6]} 23... Rxc2 {[%clk
0:00:25.8]} 24. Rxc2 {[%clk 0:01:16.8]} 24... Rc8 {[%clk 0:00:26.2]} 25. Rxc8+
{[%clk 0:01:16.1]} 25... Nxc8 {[%clk 0:00:27.1]} 26. h3 {[%clk 0:01:10.4]} 26...
h5 {[%clk 0:00:26.7]} 27. Nfd2 {[%clk 0:01:06.5]} 27... Na7 {[%clk 0:00:24.5]}
28. Qc2 {[%clk 0:00:58.5]} 28... Qc5 {[%clk 0:00:22.6]} 29. Bd1 {[%clk
0:00:53.4]} 29... Nc6 {[%clk 0:00:22.8]} 30. Qxc5 {[%clk 0:00:49.6]} 30... Nxc5
{[%clk 0:00:23.7]} 31. Bc2 {[%clk 0:00:50]} 31... h4 {[%clk 0:00:18.9]} 32. Kf1
{[%clk 0:00:49.6]} 32... g5 {[%clk 0:00:17.2]} 33. f3 {[%clk 0:00:46.4]} 33...
Kf8 {[%clk 0:00:16.6]} 34. Ke2 {[%clk 0:00:42.4]} 34... Ke7 {[%clk 0:00:15.7]}
35. Kd1 {[%clk 0:00:40.1]} 35... Kd6 {[%clk 0:00:13.5]} 36. Kc1 {[%clk
0:00:30.3]} 36... Ne7 {[%clk 0:00:13.6]} 37. Kd1 {[%clk 0:00:28.1]} 37... Ng6
{[%clk 0:00:13.8]} 38. b4 {[%clk 0:00:24.3]} 38... axb4 {[%clk 0:00:13.8]} 39.
axb4 {[%clk 0:00:22.9]} 39... Na6 {[%clk 0:00:14.7]} 40. Na3 {[%clk 0:00:21.1]}
40... Kc6 {[%clk 0:00:13.8]} 41. Nb3 {[%clk 0:00:20.3]} 41... Nxb4 {[%clk
0:00:13.6]} 42. Nc1 {[%clk 0:00:15.9]} 42... Nf4 {[%clk 0:00:13.3]} 43. Bb1
{[%clk 0:00:15.4]} 43... Nxg2 {[%clk 0:00:13.4]} 44. Kd2 {[%clk 0:00:15.3]}
44... Bxh3 {[%clk 0:00:13.4]} 45. Ke2 {[%clk 0:00:15.5]} 45... Nf4+ {[%clk
0:00:13.5]} 46. Kf2 {[%clk 0:00:15.7]} 46... Be6 {[%clk 0:00:13.6]} 47. Kg1
{[%clk 0:00:14.8]} 47... Kc5 {[%clk 0:00:13.6]} 48. Kf2 {[%clk 0:00:14.5]} 48...
f5 {[%clk 0:00:11.4]} 49. exf5 {[%clk 0:00:10.9]} 49... Bxf5 {[%clk 0:00:12.3]}
50. Nb3+ {[%clk 0:00:11.4]} 50... Kb6 {[%clk 0:00:12]} 51. Nc1 {[%clk
0:00:10.2]} 51... Nbxd3+ {[%clk 0:00:12.3]} 52. Nxd3 {[%clk 0:00:09.9]} 52...
Bxd3 {[%clk 0:00:13.2]} 53. Bxd3 {[%clk 0:00:09]} 53... Nxd3+ {[%clk 0:00:14.1]}
54. Ke2 {[%clk 0:00:09.7]} 54... h3 {[%clk 0:00:13.6]} 55. Kf1 {[%clk
0:00:09.7]} 55... Kc5 {[%clk 0:00:11.7]} 56. Nc2 {[%clk 0:00:09.7]} 56... b4
{[%clk 0:00:11.9]} 57. Ke2 {[%clk 0:00:08.8]} 57... h2 {[%clk 0:00:11.3]} 58.
Kxd3 {[%clk 0:00:09.2]} 58... h1=Q {[%clk 0:00:11.6]} 59. Ke4 {[%clk 0:00:09.9]}
59... Qb1 {[%clk 0:00:11]} 60. Kxe5 {[%clk 0:00:09.5]} 60... Qxc2 {[%clk
0:00:11.7]} 0-1

[Event "*** Titled Tuesday Blitz"]
[Site "Chess.com"]
[Date "2020.05.26"]
[Round "1"]
[White "bluejay1897"]
[Black "BocharovD"]
[Result "0-1"]
[WhiteElo "2406"]
[BlackElo "2820"]
[TimeControl "180+1"]
[EndTime "10:08:11 PDT"]
[Termination "BocharovD won by resignation"]

1. Nf3 {[%clk 0:02:58.4]} 1... c5 {[%clk 0:02:59.4]} 2. g3 {[%clk 0:02:58.2]}
2... Nc6 {[%clk 0:02:58]} 3. c4 {[%clk 0:02:55.1]} 3... e5 {[%clk 0:02:54.4]} 4.
Nc3 {[%clk 0:02:54.8]} 4... g6 {[%clk 0:02:53.8]} 5. Bg2 {[%clk 0:02:54.2]} 5...
Bg7 {[%clk 0:02:53.7]} 6. O-O {[%clk 0:02:54.7]} 6... d6 {[%clk 0:02:54]} 7. Ne1
{[%clk 0:02:46.6]} 7... Be6 {[%clk 0:02:53.9]} 8. d3 {[%clk 0:02:44.4]} 8...
Nge7 {[%clk 0:02:53.6]} 9. Nc2 {[%clk 0:02:43]} 9... d5 {[%clk 0:02:53.7]} 10.
cxd5 {[%clk 0:02:36.7]} 10... Nxd5 {[%clk 0:02:54.6]} 11. Ne3 {[%clk 0:02:33.6]}
11... Nde7 {[%clk 0:02:54.4]} 12. Bd2 {[%clk 0:02:28.4]} 12... O-O {[%clk
0:02:53.4]} 13. Rc1 {[%clk 0:02:27.6]} 13... Rc8 {[%clk 0:02:49.3]} 14. Ne4
{[%clk 0:02:14.2]} 14... b6 {[%clk 0:02:48.9]} 15. Ng5 {[%clk 0:02:12.7]} 15...
Bd7 {[%clk 0:02:48.5]} 16. Bc3 {[%clk 0:02:08.6]} 16... h6 {[%clk 0:02:45.2]}
17. Nf3 {[%clk 0:02:07.2]} 17... Be6 {[%clk 0:02:44.3]} 18. Nc4 {[%clk
0:01:56.3]} 18... Qc7 {[%clk 0:02:41.3]} 19. a4 {[%clk 0:01:52.1]} 19... Rfd8
{[%clk 0:02:39.4]} 20. Qe1 {[%clk 0:01:41.7]} 20... Nd5 {[%clk 0:02:27.9]} 21.
Bd2 {[%clk 0:01:38.9]} 21... Kh7 {[%clk 0:02:22.3]} 22. b3 {[%clk 0:01:38.9]}
22... Qd7 {[%clk 0:02:11.8]} 23. h4 {[%clk 0:01:38.1]} 23... Bh3 {[%clk
0:02:10.6]} 24. Kh2 {[%clk 0:01:22.7]} 24... Bxg2 {[%clk 0:02:10]} 25. Kxg2
{[%clk 0:01:23.6]} 25... Re8 {[%clk 0:02:08.2]} 26. Rh1 {[%clk 0:01:12.7]} 26...
e4 {[%clk 0:02:02.6]} 27. dxe4 {[%clk 0:01:12.1]} 27... Rxe4 {[%clk 0:02:03.2]}
28. h5 {[%clk 0:01:12.1]} 28... g5 {[%clk 0:01:55.3]} 29. Bxg5 {[%clk
0:01:11.5]} 29... Rce8 {[%clk 0:01:53.5]} 30. e3 {[%clk 0:01:09.3]} 30... Kh8
{[%clk 0:01:44.7]} 31. Bh4 {[%clk 0:00:58.1]} 31... Qf5 {[%clk 0:01:36.1]} 32.
Rd1 {[%clk 0:00:54.5]} 32... R8e6 {[%clk 0:01:26.6]} 33. Qd2 {[%clk 0:00:51.1]}
33... Ncb4 {[%clk 0:01:22.9]} 34. Nh2 {[%clk 0:00:31.8]} 34... Qxh5 {[%clk
0:01:17.9]} 35. Nf3 {[%clk 0:00:28.9]} 35... Qg6 {[%clk 0:01:16.4]} 36. Bg5
{[%clk 0:00:26]} 36... Kg8 {[%clk 0:01:14]} 37. Bh4 {[%clk 0:00:20.3]} 37... Nc3
{[%clk 0:01:11.8]} 38. Qd8+ {[%clk 0:00:19.5]} 38... Re8 {[%clk 0:01:12]} 39.
Qd2 {[%clk 0:00:17.2]} 39... Nxd1 {[%clk 0:01:10.4]} 40. Rxd1 {[%clk 0:00:18.1]}
40... Bf8 {[%clk 0:01:03.9]} 41. Qd7 {[%clk 0:00:17.6]} 41... R4e6 {[%clk
0:01:02.8]} 42. Rd5 {[%clk 0:00:16.7]} 42... Nxd5 {[%clk 0:01:00.1]} 43. Qxd5
{[%clk 0:00:16.1]} 43... Be7 {[%clk 0:00:56.6]} 44. Bxe7 {[%clk 0:00:15.3]}
44... R8xe7 {[%clk 0:00:56.4]} 45. Qa8+ {[%clk 0:00:13.7]} 45... Kh7 {[%clk
0:00:55.2]} 46. Qd5 {[%clk 0:00:14.3]} 46... Qe4 {[%clk 0:00:54.7]} 47. Qh5
{[%clk 0:00:13.8]} 47... Rf6 {[%clk 0:00:53.8]} 48. Nd2 {[%clk 0:00:11.6]} 48...
Qf5 {[%clk 0:00:53.1]} 49. Qh4 {[%clk 0:00:10.6]} 49... Ree6 {[%clk 0:00:51.5]}
50. Kg1 {[%clk 0:00:10.3]} 50... Kg7 {[%clk 0:00:46.5]} 51. Qh2 {[%clk
0:00:09.4]} 51... Qg4 {[%clk 0:00:43.9]} 52. Nh4 {[%clk 0:00:08.1]} 52... Rxe3
{[%clk 0:00:41.3]} 53. Nf1 {[%clk 0:00:08.5]} 53... Re1 {[%clk 0:00:40.4]} 54.
Qg2 {[%clk 0:00:07.9]} 54... Rd6 {[%clk 0:00:38.2]} 55. Kh2 {[%clk 0:00:05.1]}
55... Rdd1 {[%clk 0:00:27.9]} 56. Ne3 {[%clk 0:00:05.5]} 56... Rh1+ {[%clk
0:00:27.4]} 57. Qxh1 {[%clk 0:00:05]} 57... Rxh1+ {[%clk 0:00:27.7]} 58. Kxh1
{[%clk 0:00:05.9]} 58... Qb4 {[%clk 0:00:27]} 59. Kg2 {[%clk 0:00:06.8]} 59...
Qxb3 {[%clk 0:00:26.6]} 60. Nhf5+ {[%clk 0:00:07.7]} 60... Kf8 {[%clk
0:00:26.9]} 61. Nxh6 {[%clk 0:00:07.7]} 61... Qxa4 {[%clk 0:00:26.7]} 0-1